[Event "Romanian Open 2019"]
[Site "Alba Iulia"]
[Date "2019.10.28"]
[Round "1.1"]
[White "Istratescu, Andrei"]
[Black "Punin, Andrii"]
[Result "1/2-1/2"]
[ECO "E06"]
[WhiteElo "2564"]
[BlackElo "2310"]
[Annotator "ChessBase"]
[PlyCount "144"]
[EventDate "2019.10.28"]
[EventType "swiss"]
[EventCountry "ROU"]
[SourceTitle "playchess.com"]
[Source "ChessBase"]
[SourceQuality "1"]
[TimeControl "5400+30"]

1. d4 {[%emt 0:00:00]} Nf6 {[%emt 0:00:00]} 2. c4 {[%emt 0:00:35]} e6 {[%emt 0:00:00]} 3. g3 {[%emt 0:00:30]} d5 {[%emt 0:00:02]} 4. Nf3 {[%emt 0:00:03]} Be7 {[%emt 0:00:19]} 5. Bg2 {[%emt 0:00:14]} O-O {[%emt 0:00:09]} 6. O-O {[%emt 0:00:23]} dxc4 {[%emt 0:00:08]} 7. Qc2 {[%emt 0:00:11]} a6 {[%emt 0:00:08]} 8. a4 {[%emt 0:00:03]} Bd7 {[%emt 0:00:11]} 9. Qxc4 {[%emt 0:00:05]} Bc6 {[%emt 0:00:15]} 10. Bf4 {[%emt 0:00:02]} Bd6 {[%emt 0:00:47]} 11. Qc1 {[%emt 0:00:12]} a5 {[%emt 0:00:57]} 12. Nc3 {[%emt 0:09:43]} Na6 {[%emt 0:00:18]} 13. Rd1 {[%emt 0:01:18]} Nb4 {[%emt 0:01:36]} 14. Bg5 {[%emt 0:03:08]} Be7 {[%emt 0:01:54]} 15. Ne5 {[%emt 0:08:23]} Bxg2 {[%emt 0:00:11]} 16. Kxg2 {[%emt 0:00:01]} Nd7 {[%emt 0:05:19]} 17. Bxe7 {[%emt 0:02:34]} Qxe7 {[%emt 0:00:20]} 18. Nf3 {[%emt 0:00:52]} c6 {[%emt 0:26:01]} 19. Qf4 {[%emt 0:11:54]} Nb6 {[%emt 0:02:45]} 20. e4 {[%emt 0:04:26]} f5 {[%emt 0:05:06]} 21. Qd2 {[%emt 0:05:49]} Nc4 {[%emt 0:05:55]} 22. Qe2 {[%emt 0:01:20]} Nd6 {[%emt 0:00:13]} 23. Rd2 {[%emt 0:07:39]} Rae8 {[%emt 0:04:46]} 24. Re1 {[%emt 0:02:15]} Qd8 {[%emt 0:04:24]} 25. b3 {[%emt 0:04:17]} fxe4 {[%emt 0:05:48]} 26. Nxe4 {[%emt 0:00:06]} Nxe4 {[%emt 0:00:08]} 27. Qxe4 {[%emt 0:00:01]} Qd5 {[%emt 0:00:17]} 28. Re3 {[%emt 0:01:09]} Qxe4 {[%emt 0:05:09]} 29. Rxe4 {[%emt 0:00:03]} Nd5 {[%emt 0:00:12]} 30. Ne5 {[%emt 0:05:40]} Re7 {[%emt 0:02:31]} 31. Re1 {[%emt 0:03:18]} Nc7 {[%emt 0:02:27]} 32. Nc4 {[%emt 0:01:36]} Ra8 {[%emt 0:01:43]} 33. Re5 {[%emt 0:00:04]} b5 {[%emt 0:03:43]} 34. Na3 {[%emt 0:01:44]} Nd5 {[%emt 0:00:53]} 35. Rc2 {[%emt 0:04:10]} Nb4 {[%emt 0:00:26]} 36. Rce2 {[%emt 0:00:15]} bxa4 {[%emt 0:03:31]} 37. bxa4 {[%emt 0:00:17]} Rd7 {[%emt 0:01:04]} 38. R2e4 {[%emt 0:02:20]} Rad8 {[%emt 0:03:17]} 39. Rxa5 {[%emt 0:02:15]} Rxd4 {[%emt 0:00:07]} 40. Rxe6 {[%emt 0:00:07]} Rd2 {[%emt 0:03:17]} 41. Nc4 {[%emt 0:01:37]} Ra2 {[%emt 0:01:02]} 42. Ra7 {[%emt 0:00:55]} Rf8 {[%emt 0:00:54]} 43. Ree7 {[%emt 0:01:04]} Raxf2+ {[%emt 0:00:28]} 44. Kh3 {[%emt 0:00:16]} R8f7 {[%emt 0:01:06]} 45. Rxf7 {[%emt 0:03:56]} Rxf7 {[%emt 0:00:06]} 46. Ra8+ {[%emt 0:00:01]} Rf8 {[%emt 0:00:10]} 47. Rxf8+ {[%emt 0:00:04]} Kxf8 {[%emt 0:00:07]} 48. Kg4 {[%emt 0:00:01]} Ke7 {[%emt 0:01:22]} 49. Kf5 {[%emt 0:00:58]} Kd7 {[%emt 0:01:10]} 50. h4 {[%emt 0:01:24]} Nd5 {[%emt 0:02:04]} 51. a5 {[%emt 0:02:25]} c5 {[%emt 0:00:52]} 52. a6 {[%emt 0:04:45]} Kc6 {[%emt 0:00:15]} 53. Ke6 {[%emt 0:00:54]} Nc7+ {[%emt 0:00:07]} 54. Kf7 {[%emt 0:00:02]} Nxa6 {[%emt 0:00:36]} 55. Kxg7 {[%emt 0:00:07]} h5 {[%emt 0:03:00]} 56. Kg6 {[%emt 0:00:49]} Kd5 {[%emt 0:00:13]} 57. Nb6+ {[%emt 0:00:19]} Ke6 {[%emt 0:01:12]} 58. Kxh5 {[%emt 0:00:26]} Kf7 {[%emt 0:00:09]} 59. Kg5 {[%emt 0:00:16]} Kg7 {[%emt 0:01:37]} 60. h5 {[%emt 0:01:55]} Nc7 {[%emt 0:00:15]} 61. Nc4 {[%emt 0:01:15]} Ne6+ {[%emt 0:00:19]} 62. Kh4 {[%emt 0:00:30]} Nd4 {[%emt 0:02:06]} 63. g4 {[%emt 0:00:39]} Nf3+ {[%emt 0:00:08]} 64. Kg3 {[%emt 0:00:03]} Ng5 {[%emt 0:00:10]} 65. Nd2 {[%emt 0:00:55]} Kf6 {[%emt 0:01:04]} 66. Kf2 {[%emt 0:04:00]} Ne6 {[%emt 0:00:37]} 67. Nf3 {[%emt 0:02:02]} c4 {[%emt 0:01:43]} 68. Ke3 {[%emt 0:00:07]} c3 {[%emt 0:01:06]} 69. Kd3 {[%emt 0:00:06]} Kg7 {[%emt 0:00:11]} 70. Kxc3 {[%emt 0:00:13]} Nf4 {[%emt 0:00:11]} 71. Nd4 {[%emt 0:00:04]} Nxh5 {[%emt 0:00:14]} 72. gxh5 Kh6 {[%emt 0:00:06]} 1/2-1/2

[Event "Romanian Open 2019"]
[Site "Alba Iulia"]
[Date "2019.10.28"]
[Round "1.2"]
[White "Bhambure, Shantanu"]
[Black "Fedorov, Alexei"]
[Result "0-1"]
[ECO "E81"]
[WhiteElo "2291"]
[BlackElo "2551"]
[Annotator "ChessBase"]
[PlyCount "94"]
[EventDate "2019.10.28"]
[EventType "swiss"]
[EventCountry "ROU"]
[SourceTitle "playchess.com"]
[Source "ChessBase"]
[SourceQuality "1"]
[TimeControl "5400+30"]

1. d4 {[%emt 0:00:00]} Nf6 {[%emt 0:00:00]} 2. c4 {[%emt 0:00:00]} g6 {[%emt 0:00:00]} 3. Nc3 {[%emt 0:00:00]} Bg7 {[%emt 0:00:00]} 4. e4 {[%emt 0:00:00]} d6 {[%emt 0:00:00]} 5. f3 {[%emt 0:00:02]} O-O {[%emt 0:00:09]} 6. Be3 {[%emt 0:00:25]} a6 {[%emt 0:01:27]} 7. Qd2 {[%emt 0:01:40]} Nbd7 {[%emt 0:04:08]} 8. Nh3 {[%emt 0:09:11]} c5 {[%emt 0:01:12]} 9. d5 {[%emt 0:05:24]} b5 {[%emt 0:03:12]} 10. cxb5 {[%emt 0:03:57]} Qa5 {[%emt 0:00:25]} 11. Nf2 {[%emt 0:09:26]} Nb6 {[%emt 0:04:49]} 12. Be2 {[%emt 0:12:43]} Nfd7 {[%emt 0:06:31]} 13. Bh6 {[%emt 0:14:30]} Bxh6 {[%emt 0:02:01]} 14. Qxh6 {[%emt 0:00:02]} Na4 {[%emt 0:01:16]} 15. Qd2 {[%emt 0:04:36]} Nxc3 {[%emt 0:04:28]} 16. b6 {[%emt 0:02:24]} Nxb6 {[%emt 0:01:40]} 17. Qxc3 {[%emt 0:01:54]} Qxc3+ {[%emt 0:06:24]} 18. bxc3 {[%emt 0:00:04]} Bd7 {[%emt 0:04:43]} 19. c4 {[%emt 0:02:18]} Rfb8 {[%emt 0:07:07]} 20. Kd2 {[%emt 0:05:30]} Rb7 {[%emt 0:03:40]} 21. Rab1 {[%emt 0:06:10]} Rab8 {[%emt 0:00:51]} 22. Rb3 {[%emt 0:00:19]} a5 {[%emt 0:00:26]} 23. Bd3 {[%emt 0:01:38]} a4 {[%emt 0:04:02]} 24. Rc3 {[%emt 0:00:14]} e6 {[%emt 0:06:10]} 25. Nd1 {[%emt 0:00:59]} exd5 {[%emt 0:05:14]} 26. exd5 {[%emt 0:01:22]} Na8 {[%emt 0:02:29]} 27. Re1 {[%emt 0:03:06]} Nc7 {[%emt 0:01:42]} 28. f4 {[%emt 0:04:06]} Ne8 {[%emt 0:00:46]} 29. Bc2 {[%emt 0:01:30]} Nf6 {[%emt 0:01:18]} 30. Ra3 {[%emt 0:05:29]} Rb4 {[%emt 0:04:10]} 31. Ne3 {[%emt 0:00:23]} Re8 {[%emt 0:01:28]} 32. g3 {[%emt 0:01:32]} h5 {[%emt 0:02:46]} 33. Rc1 {[%emt 0:02:21]} Kg7 {[%emt 0:05:52]} 34. Bd3 {[%emt 0:01:39]} Rb2+ {[%emt 0:00:56]} 35. Nc2 {[%emt 0:01:03]} Ng4 {[%emt 0:01:29]} 36. Kc3 {[%emt 0:01:07]} Rbb8 {[%emt 0:04:52]} 37. h4 {[%emt 0:00:11]} Nf2 {[%emt 0:00:47]} 38. Re1 {[%emt 0:00:44]} Rxe1 {[%emt 0:00:45]} 39. Nxe1 {[%emt 0:00:01]} Nh1 {[%emt 0:00:05]} 40. Kc2 {[%emt 0:01:13]} Re8 {[%emt 0:01:58]} 41. Kd2 {[%emt 0:00:25]} Nxg3 {[%emt 0:00:16]} 42. Nf3 {[%emt 0:00:28]} Ne4+ {[%emt 0:01:49]} 43. Kc2 {[%emt 0:00:29]} Nf2 {[%emt 0:00:40]} 44. Ng5 {[%emt 0:00:23]} Re3 {[%emt 0:01:21]} 45. Kd2 {[%emt 0:00:33]} Rg3 {[%emt 0:00:18]} 46. Rc3 {[%emt 0:00:24]} Nxd3 {[%emt 0:03:01]} 47. Rxd3 {[%emt 0:00:05]} Rg2+ {[%emt 0:00:30]} 0-1

[Event "Romanian Open 2019"]
[Site "Alba Iulia"]
[Date "2019.10.28"]
[Round "1.3"]
[White "Manolache, Marius"]
[Black "Talu, Mircea"]
[Result "0-1"]
[ECO "E46"]
[WhiteElo "2548"]
[BlackElo "2288"]
[Annotator "ChessBase"]
[PlyCount "102"]
[EventDate "2019.10.28"]
[EventType "swiss"]
[EventCountry "ROU"]
[SourceTitle "playchess.com"]
[Source "ChessBase"]
[SourceQuality "1"]
[TimeControl "5400+30"]

1. d4 {[%emt 0:00:00]} Nf6 {[%emt 0:00:00]} 2. c4 {[%emt 0:00:00]} e6 {[%emt 0:00:00]} 3. Nc3 {[%emt 0:00:03]} Bb4 {[%emt 0:00:00]} 4. e3 {[%emt 0:00:07]} O-O {[%emt 0:00:01]} 5. Bd2 {[%emt 0:00:21]} b6 {[%emt 0:00:10]} 6. Qf3 {[%emt 0:05:28]} d5 {[%emt 0:04:39]} 7. Bd3 {[%emt 0:00:35]} Ba6 {[%emt 0:04:29]} 8. Nge2 {[%emt 0:03:41]} Nbd7 {[%emt 0:00:29]} 9. a3 {[%emt 0:08:24]} Bxc3 {[%emt 0:02:41]} 10. Bxc3 {[%emt 0:00:53]} c5 {[%emt 0:02:48]} 11. Bc2 {[%emt 0:29:44]} Bxc4 {[%emt 0:05:47]} 12. Rd1 {[%emt 0:00:06]} Qe7 {[%emt 0:06:29]} 13. Qh3 {[%emt 0:08:12]} Ne4 {[%emt 0:12:28]} 14. Bxe4 {[%emt 0:00:24]} dxe4 {[%emt 0:00:06]} 15. Qg3 {[%emt 0:04:14]} f5 {[%emt 0:11:00]} 16. Nf4 {[%emt 0:00:14]} Nf6 {[%emt 0:02:59]} 17. dxc5 {[%emt 0:04:40]} bxc5 {[%emt 0:02:40]} 18. Be5 {[%emt 0:01:09]} Rad8 {[%emt 0:08:31]} 19. f3 {[%emt 0:00:22]} Rxd1+ {[%emt 0:00:45]} 20. Kxd1 {[%emt 0:00:04]} Qd7+ {[%emt 0:04:59]} 21. Kc1 {[%emt 0:00:11]} Bb3 {[%emt 0:00:13]} 22. Qe1 {[%emt 0:07:59]} Rd8 {[%emt 0:03:36]} 23. Bxf6 {[%emt 0:01:25]} gxf6 {[%emt 0:00:06]} 24. fxe4 {[%emt 0:01:21]} fxe4 {[%emt 0:01:56]} 25. Qe2 {[%emt 0:08:10]} Kh8 {[%emt 0:03:51]} 26. Re1 {[%emt 0:02:10]} e5 {[%emt 0:11:42]} 27. Nh3 {[%emt 0:01:29]} c4 {[%emt 0:04:04]} 28. Nf2 {[%emt 0:01:29]} Qc6 {[%emt 0:00:46]} 29. Nd1 {[%emt 0:00:38]} Bxd1 {[%emt 0:00:07]} 30. Rxd1 {[%emt 0:00:04]} Rd3 {[%emt 0:00:16]} 31. Kb1 {[%emt 0:07:53]} Qb6 {[%emt 0:02:10]} 32. Rf1 {[%emt 0:01:34]} c3 {[%emt 0:00:44]} 33. Qc2 {[%emt 0:00:41]} Rxe3 {[%emt 0:01:43]} 34. Ka2 {[%emt 0:00:56]} Qxb2+ {[%emt 0:01:05]} 35. Qxb2 {[%emt 0:00:04]} cxb2 {[%emt 0:00:07]} 36. Rxf6 {[%emt 0:00:19]} Rb3 {[%emt 0:01:47]} 37. Kb1 {[%emt 0:00:09]} e3 {[%emt 0:00:08]} 38. Rf5 {[%emt 0:00:27]} Rb5 {[%emt 0:01:17]} 39. Rf3 {[%emt 0:00:05]} Rb3 {[%emt 0:00:04]} 40. Rf5 {[%emt 0:00:03]} e4 {[%emt 0:01:12]} 41. Rf4 {[%emt 0:00:11]} Rxa3 {[%emt 0:00:24]} 42. Kxb2 {[%emt 0:00:16]} Ra4 {[%emt 0:00:51]} 43. Rf1 {[%emt 0:00:06]} Rd4 {[%emt 0:00:21]} 44. Kc3 {[%emt 0:02:10]} Rd3+ {[%emt 0:00:47]} 45. Kc4 {[%emt 0:00:06]} Rd2 {[%emt 0:00:07]} 46. Re1 {[%emt 0:02:04]} e2 {[%emt 0:00:21]} 47. g4 {[%emt 0:01:10]} Kg7 {[%emt 0:00:30]} 48. h4 {[%emt 0:00:22]} Kf6 {[%emt 0:00:15]} 49. Kc3 {[%emt 0:00:23]} e3 {[%emt 0:00:08]} 50. Kc4 {[%emt 0:01:31]} Ke5 {[%emt 0:00:21]} 51. g5 {[%emt 0:00:18]} Kf5 {[%emt 0:00:31]} 0-1

[Event "Romanian Open 2019"]
[Site "Alba Iulia"]
[Date "2019.10.28"]
[Round "1.4"]
[White "Ognean, Mihnea-Ionut"]
[Black "Vedmediuc, Serghei"]
[Result "1-0"]
[ECO "E71"]
[WhiteElo "2285"]
[BlackElo "2457"]
[Annotator "ChessBase"]
[PlyCount "75"]
[EventDate "2019.10.28"]
[EventType "swiss"]
[EventCountry "ROU"]
[SourceTitle "playchess.com"]
[Source "ChessBase"]
[SourceQuality "1"]
[TimeControl "5400+30"]

1. d4 {[%emt 0:00:00]} Nf6 {[%emt 0:00:00]} 2. c4 {[%emt 0:00:00]} g6 {[%emt 0:00:17]} 3. Nc3 {[%emt 0:00:00]} Bg7 {[%emt 0:00:07]} 4. e4 {[%emt 0:00:00]} d6 {[%emt 0:00:29]} 5. h3 {[%emt 0:00:06]} O-O {[%emt 0:00:44]} 6. Be3 {[%emt 0:00:04]} Nbd7 {[%emt 0:03:22]} 7. g4 {[%emt 0:00:54]} a6 {[%emt 0:10:46]} 8. Nge2 {[%emt 0:04:00]} c5 {[%emt 0:07:04]} 9. Bg2 {[%emt 0:01:58]} cxd4 {[%emt 0:17:43]} 10. Nxd4 {[%emt 0:01:15]} Ne5 {[%emt 0:00:30]} 11. b3 {[%emt 0:02:36]} Qa5 {[%emt 0:00:24]} 12. Qd2 {[%emt 0:02:24]} Bd7 {[%emt 0:06:05]} 13. O-O {[%emt 0:10:34]} Rab8 {[%emt 0:15:10]} 14. f4 {[%emt 0:05:52]} Nc6 {[%emt 0:00:16]} 15. Nde2 {[%emt 0:00:17]} Rfd8 {[%emt 0:21:37]} 16. a3 {[%emt 0:01:42]} b5 {[%emt 0:02:58]} 17. b4 {[%emt 0:00:13]} Qc7 {[%emt 0:00:02]} 18. cxb5 {[%emt 0:00:20]} axb5 {[%emt 0:00:01]} 19. Rac1 {[%emt 0:00:26]} Qb7 {[%emt 0:00:41]} 20. a4 {[%emt 0:01:58]} bxa4 {[%emt 0:07:39]} 21. b5 {[%emt 0:00:07]} e5 {[%emt 0:03:20]} 22. bxc6 {[%emt 0:00:14]} Bxc6 {[%emt 0:00:02]} 23. Rb1 {[%emt 0:01:59]} Qa8 {[%emt 0:00:10]} 24. Nd5 {[%emt 0:01:36]} Nxd5 {[%emt 0:00:55]} 25. exd5 {[%emt 0:00:05]} Bb5 {[%emt 0:00:17]} 26. f5 {[%emt 0:02:40]} a3 {[%emt 0:00:41]} 27. Ra1 {[%emt 0:02:44]} Qa6 {[%emt 0:01:03]} 28. Rf2 {[%emt 0:00:52]} Bc4 {[%emt 0:00:12]} 29. Nc3 {[%emt 0:02:03]} Rb3 {[%emt 0:00:09]} 30. f6 {[%emt 0:02:05]} Bf8 {[%emt 0:01:06]} 31. Bh6 {[%emt 0:14:31]} Qb6 {[%emt 0:00:03]} 32. Bxf8 {[%emt 0:01:43]} Kxf8 {[%emt 0:00:01]} 33. Be4 {[%emt 0:05:34]} Rb2 {[%emt 0:01:19]} 34. Na4 {[%emt 0:00:08]} Qxf2+ {[%emt 0:00:28]} 35. Qxf2 {[%emt 0:00:03]} Rxf2 {[%emt 0:00:10]} 36. Kxf2 {[%emt 0:00:02]} a2 {[%emt 0:00:22]} 37. Nb6 {[%emt 0:01:40]} Bb3 {[%emt 0:00:06]} 38. Bd3 {[%emt 0:00:08]} 1-0

[Event "Romanian Open 2019"]
[Site "Alba Iulia"]
[Date "2019.10.28"]
[Round "1.5"]
[White "Akash G"]
[Black "Bilych, Olexiy"]
[Result "1/2-1/2"]
[ECO "A05"]
[WhiteElo "2449"]
[BlackElo "2281"]
[Annotator "NA"]
[PlyCount "122"]
[EventDate "2019.10.28"]
[EventType "swiss"]
[EventCountry "ROU"]
[SourceTitle "playchess.com"]
[Source "ChessBase"]
[SourceQuality "1"]
[TimeControl "5400+30"]

1. Nf3 {[%emt 0:00:00]} Nf6 {[%emt 0:00:00]} 2. g3 {[%emt 0:00:03]} b6 {[%emt 0:00:40]} 3. d3 {[%emt 0:00:52]} e6 {[%emt 0:02:00]} 4. e4 {[%emt 0:01:45]} d5 {[%emt 0:02:41]} 5. e5 {[%emt 0:03:40]} Nfd7 {[%emt 0:01:02]} 6. Bg2 {[%emt 0:00:57]} Be7 {[%emt 0:00:34]} 7. O-O {[%emt 0:01:02]} c5 {[%emt 0:00:05]} 8. Re1 {[%emt 0:01:41]} Bb7 {[%emt 0:00:18]} 9. Nbd2 {[%emt 0:03:30]} Nc6 {[%emt 0:00:19]} 10. Nf1 {[%emt 0:00:54]} Qc7 {[%emt 0:00:14]} 11. Bf4 {[%emt 0:00:46]} O-O-O {[%emt 0:01:45]} 12. c3 {[%emt 0:04:03]} Rdg8 {[%emt 0:04:00]} 13. h4 {[%emt 0:02:32]} h6 {[%emt 0:00:52]} 14. h5 {[%emt 0:01:57]} g5 {[%emt 0:00:23]} 15. hxg6 {[%emt 0:00:16]} fxg6 {[%emt 0:00:06]} 16. d4 {[%emt 0:01:00]} g5 {[%emt 0:01:44]} 17. Be3 {[%emt 0:00:49]} h5 {[%emt 0:08:39]} 18. g4 {[%emt 0:04:20]} hxg4 {[%emt 0:08:30]} 19. N3h2 {[%emt 0:00:28]} Nf8 {[%emt 0:05:16]} 20. Rc1 {[%emt 0:08:30]} Kb8 {[%emt 0:13:06]} 21. Nxg4 {[%emt 0:11:35]} Ng6 {[%emt 0:02:00]} 22. Ng3 {[%emt 0:05:38]} Nf4 {[%emt 0:03:42]} 23. f3 {[%emt 0:01:34]} c4 {[%emt 0:02:33]} 24. Bf1 {[%emt 0:01:24]} Bd8 {[%emt 0:02:21]} 25. Rc2 {[%emt 0:02:03]} Ne7 {[%emt 0:04:39]} 26. Rh2 {[%emt 0:04:52]} Nf5 {[%emt 0:05:54]} 27. Rxh8 {[%emt 0:06:00]} Rxh8 {[%emt 0:00:11]} 28. Bxf4 {[%emt 0:01:49]} gxf4 {[%emt 0:00:15]} 29. Nxf5 {[%emt 0:00:48]} exf5 {[%emt 0:01:41]} 30. Nf6 {[%emt 0:00:35]} Qg7+ {[%emt 0:07:45]} 31. Bg2 {[%emt 0:00:07]} Qg3 {[%emt 0:01:06]} 32. Qd2 {[%emt 0:04:19]} Bc6 {[%emt 0:04:34]} 33. Kf1 {[%emt 0:01:17]} Qg5 {[%emt 0:03:38]} 34. Re2 {[%emt 0:01:07]} Be7 {[%emt 0:02:58]} 35. Rf2 {[%emt 0:01:04]} Kc7 {[%emt 0:01:21]} 36. Ke1 {[%emt 0:01:51]} Rh2 {[%emt 0:01:19]} 37. b3 {[%emt 0:03:51]} b5 {[%emt 0:03:11]} 38. b4 {[%emt 0:02:11]} Bf8 {[%emt 0:01:07]} 39. Kf1 {[%emt 0:03:14]} Be7 {[%emt 0:01:35]} 40. Qc2 {[%emt 0:02:00]} Kb7 {[%emt 0:00:42]} 41. a4 {[%emt 0:01:36]} a6 {[%emt 0:00:33]} 42. axb5 {[%emt 0:00:53]} axb5 {[%emt 0:00:04]} 43. Qc1 {[%emt 0:01:31]} Bd8 {[%emt 0:02:49]} 44. Ra2 {[%emt 0:02:38]} Bb6 {[%emt 0:00:31]} 45. Kg1 {[%emt 0:03:25]} Rh8 {[%emt 0:00:25]} 46. Qe1 {[%emt 0:01:18]} Rh6 {[%emt 0:01:06]} 47. Kf1 {[%emt 0:01:48]} Rh2 {[%emt 0:00:32]} 48. Qf2 {[%emt 0:00:34]} Rh6 {[%emt 0:00:36]} 49. Ke1 {[%emt 0:00:45]} Rh2 {[%emt 0:00:55]} 50. Kd1 {[%emt 0:00:56]} Rh8 {[%emt 0:00:54]} 51. Kc1 {[%emt 0:01:08]} Rh2 {[%emt 0:00:23]} 52. Re2 {[%emt 0:00:42]} Bd8 {[%emt 0:00:29]} 53. Qf1 {[%emt 0:00:50]} Qh4 {[%emt 0:00:46]} 54. Qd1 {[%emt 0:00:38]} Qg5 {[%emt 0:01:16]} 55. Bf1 {[%emt 0:01:07]} Rxe2 {[%emt 0:00:14]} 56. Qxe2 {[%emt 0:00:34]} Bxf6 {[%emt 0:00:04]} 57. exf6 {[%emt 0:00:08]} Qxf6 {[%emt 0:00:03]} 58. Bh3 {[%emt 0:00:40]} Bd7 {[%emt 0:00:30]} 59. Kd2 {[%emt 0:00:50]} Kc8 {[%emt 0:00:26]} 60. Bf1 {[%emt 0:00:51]} Qe6 {[%emt 0:01:16]} 61. Ke1 {[%emt 0:00:39]} Qxe2+ {[%emt 0:00:23]} 1/2-1/2

[Event "Romanian Open 2019"]
[Site "Alba Iulia"]
[Date "2019.10.28"]
[Round "1.6"]
[White "Gomes, Mary Ann"]
[Black "Andreev, Eduard"]
[Result "1/2-1/2"]
[ECO "B51"]
[WhiteElo "2268"]
[BlackElo "2435"]
[Annotator "NA"]
[PlyCount "114"]
[EventDate "2019.10.28"]
[EventType "swiss"]
[EventCountry "ROU"]
[SourceTitle "playchess.com"]
[Source "ChessBase"]
[SourceQuality "1"]
[TimeControl "5400+30"]

1. Nf3 {[%emt 0:00:00]} c5 {[%emt 0:00:00]} 2. e4 {[%emt 0:00:11]} d6 {[%emt 0:00:00]} 3. Bb5+ {[%emt 0:00:07]} Nd7 {[%emt 0:00:57]} 4. O-O {[%emt 0:00:40]} a6 {[%emt 0:00:31]} 5. Bd3 {[%emt 0:00:08]} Ngf6 {[%emt 0:00:56]} 6. c3 {[%emt 0:00:34]} b5 {[%emt 0:01:39]} 7. Qe2 {[%emt 0:00:52]} Bb7 {[%emt 0:01:07]} 8. Bc2 {[%emt 0:00:17]} e6 {[%emt 0:01:43]} 9. a4 {[%emt 0:05:02]} Be7 {[%emt 0:01:46]} 10. Re1 {[%emt 0:01:36]} b4 {[%emt 0:07:58]} 11. a5 {[%emt 0:00:25]} Rc8 {[%emt 0:22:30]} 12. d3 {[%emt 0:02:08]} O-O {[%emt 0:05:26]} 13. Bd2 {[%emt 0:07:29]} Ne5 {[%emt 0:09:13]} 14. Nxe5 {[%emt 0:02:48]} dxe5 {[%emt 0:00:07]} 15. Be3 {[%emt 0:00:09]} Ne8 {[%emt 0:04:02]} 16. Nd2 {[%emt 0:07:22]} Nd6 {[%emt 0:01:17]} 17. cxb4 {[%emt 0:03:48]} cxb4 {[%emt 0:00:08]} 18. Nf3 {[%emt 0:07:40]} Nb5 {[%emt 0:01:51]} 19. Nxe5 {[%emt 0:06:57]} Nd4 {[%emt 0:01:51]} 20. Bxd4 {[%emt 0:00:06]} Qxd4 {[%emt 0:00:05]} 21. Nc4 {[%emt 0:00:07]} Bc5 {[%emt 0:01:49]} 22. Red1 {[%emt 0:03:08]} Kh8 {[%emt 0:02:00]} 23. Rd2 {[%emt 0:05:13]} f5 {[%emt 0:07:10]} 24. Kh1 {[%emt 0:02:13]} fxe4 {[%emt 0:09:33]} 25. dxe4 {[%emt 0:01:19]} Rxf2 {[%emt 0:00:11]} 26. Qxf2 {[%emt 0:01:29]} Qxf2 {[%emt 0:00:07]} 27. Rxf2 {[%emt 0:00:05]} Bxf2 {[%emt 0:00:06]} 28. Rd1 {[%emt 0:03:46]} g6 {[%emt 0:09:13]} 29. Bb3 {[%emt 0:02:58]} Bc5 {[%emt 0:01:53]} 30. Ne5 {[%emt 0:07:46]} Rc7 {[%emt 0:00:27]} 31. Bxe6 {[%emt 0:06:07]} Bxe4 {[%emt 0:00:50]} 32. Bc4 {[%emt 0:01:52]} Kg7 {[%emt 0:02:39]} 33. b3 {[%emt 0:07:54]} Bb7 {[%emt 0:02:08]} 34. Nd7 {[%emt 0:02:37]} Be7 {[%emt 0:02:36]} 35. h3 {[%emt 0:01:59]} Bc8 {[%emt 0:01:54]} 36. Nb6 {[%emt 0:01:36]} Bf5 {[%emt 0:01:14]} 37. Re1 {[%emt 0:02:24]} Bh4 {[%emt 0:00:39]} 38. Re2 {[%emt 0:04:58]} Bg3 {[%emt 0:00:41]} 39. Re3 {[%emt 0:00:35]} Bf2 {[%emt 0:00:33]} 40. Re2 {[%emt 0:00:30]} Bg3 {[%emt 0:00:22]} 41. Re3 {[%emt 0:00:13]} Bf4 {[%emt 0:00:20]} 42. Nd5 {[%emt 0:01:11]} Bxe3 {[%emt 0:00:55]} 43. Nxc7 {[%emt 0:00:07]} Bf4 {[%emt 0:00:25]} 44. Nd5 {[%emt 0:00:32]} Bd6 {[%emt 0:00:22]} 45. Bxa6 {[%emt 0:00:17]} Bc5 {[%emt 0:00:36]} 46. Bb7 {[%emt 0:00:56]} Bc2 {[%emt 0:00:23]} 47. a6 {[%emt 0:00:27]} Bxb3 {[%emt 0:00:29]} 48. Nxb4 {[%emt 0:00:06]} Ba4 {[%emt 0:00:33]} 49. Nd5 {[%emt 0:01:48]} Kf7 {[%emt 0:00:38]} 50. Nc3 {[%emt 0:00:16]} Bd7 {[%emt 0:00:17]} 51. Ne4 {[%emt 0:00:27]} Ba7 {[%emt 0:00:19]} 52. Bc8 {[%emt 0:00:41]} Bc6 {[%emt 0:00:35]} 53. Ng5+ {[%emt 0:00:07]} Kg7 {[%emt 0:00:28]} 54. Ne6+ {[%emt 0:01:29]} Kf6 {[%emt 0:00:14]} 55. Nf8 {[%emt 0:00:42]} Kg7 {[%emt 0:00:37]} 56. Ne6+ {[%emt 0:00:18]} Kf6 {[%emt 0:00:05]} 57. Nf8 {[%emt 0:00:35]} Kg7 {[%emt 0:00:05]} 1/2-1/2